bitfinex-derivatives/quotes_ETHF0:USTF0_20251005
["timestamp","ask_amount","ask_price","bid_price","bid_amount"]
[1759651646326,0.1559,4614.2,4614.1,0.00176083]
[1759651646529,0.55988845,4614.2,4614.1,0.40876083]
[1759651646721,0.55988845,4614.2,4614.1,0.68916083]
[1759651648325,0.55988845,4614.2,4614.1,0.95646083]
[1759651649726,0.50048845,4614.2,4614.1,0.95646083]
[1759651649925,0.44108845,4614.2,4614.1,0.95646083]
[1759651650626,0.50048845,4614.2,4614.1,0.95646083]
[1759651650822,0.55988845,4614.2,4614.1,0.95646083]
[1759651651030,5.59698845,4614.2,4613.1,0.39006]
[1759651651331,0.185,4613.7,4613.6,0.5477]
[1759651651518,0.84508845,4613.7,4613.6,0.5477]
[1759651651921,0.84508845,4613.7,4613.6,0.54991844]
[1759651652129,0.66008845,4613.7,4613.6,0.54991844]
[1759651652523,0.44108845,4613.7,4613.6,0.54991844]
[1759651652928,0.44108845,4613.7,4613.6,0.97241844]
[1759651657530,0.61648845,4613.7,4613.6,0.97241844]
[1759651658026,0.44108845,4613.7,4613.6,0.97241844]
[1759651660233,0.79188845,4613.7,4613.6,0.70511844]
[1759651660423,0.90148845,4613.7,4613.6,0.42471844]
[1759651660824,4.10928845,4613.7,4613.6,0.00221844]
[1759651661031,9.10928845,4613.7,4613.6,0.00221844]
[1759651661434,9.10928845,4613.7,4613.6,0.42471844]
[1759651661638,9.32828845,4613.7,4613.6,0.42471844]
[1759651661828,9.32828845,4613.7,4613.6,0.00221844]
[1759651662537,4.32828845,4613.7,4613.6,0.00221844]
[1759651663436,3.2078,4613.0,4609.9,3.2078]
[1759651663628,3.2078,4611.2,4610.6,0.4225]
[1759651663937,0.76748845,4611.1,4610.5,0.1585]
[1759651664133,3.2078,4610.7,4610.6,0.4225]
[1759651664332,3.86788845,4610.7,4610.6,0.4225]
[1759651664536,3.87054091,4610.7,4610.6,0.42503273]
[1759651665035,3.87054091,4610.7,4610.6,0.00253273]
[1759651665340,3.97794091,4610.7,4610.6,0.00253273]
[1759651667737,4.30314091,4610.7,4610.6,0.00253273]
[1759651668135,12.15909984,4610.7,4610.0,0.1585]
[1759651668437,12.15909984,4610.7,4609.8,0.4094]
[1759651668438,0.3252,4609.9,4609.8,0.4094]
[1759651668627,0.6458,4609.9,4609.6,0.4094]
[1759651668829,3.2078,4609.7,4609.6,0.4094]
[1759651669037,0.219,4609.8,4609.7,0.4094]
[1759651669337,3.2078,4610.2,4610.1,0.6809]
[1759651669338,3.3704,4610.2,4610.1,0.6809]
[1759651669542,4.03897891,4610.2,4610.1,0.6809]
[1759651670130,4.20157891,4610.2,4610.1,0.6809]
[1759651670441,4.20143225,4610.2,4610.1,0.6809]
[1759651670837,4.20143225,4610.2,4610.1,0.4094]
[1759651671830,4.30303225,4610.2,4610.1,0.4094]
[1759651672636,4.30303225,4610.2,4610.0,0.1539]
[1759651672836,0.77463225,4610.1,4610.0,0.1539]
[1759651673052,0.87623225,4610.1,4609.8,0.4094]
[1759651673232,0.3252,4609.9,4609.8,0.6809]
[1759651673936,0.3252,4609.9,4609.8,1.07125]
[1759651674439,0.3252,4609.9,4609.8,0.6809]
[1759651675140,0.1626,4609.9,4609.8,0.9412]
[1759651675343,0.3816,4610.0,4609.9,0.9412]
[1759651676036,0.3816,4610.0,4609.9,0.4094]
[1759651676037,0.5442,4610.0,4609.9,0.4094]
[1759651676252,0.4268,4609.8,4609.7,0.41197384]
[1759651676740,0.77428538,4609.8,4609.7,0.41197384]
[1759651677044,3.63396666,4609.8,4609.7,0.00257384]
[1759651677635,8.63396666,4609.8,4609.7,0.00257384]
[1759651677841,8.85296666,4609.8,4609.7,0.00257384]
[1759651678545,3.75136666,4609.8,4609.7,0.41197384]
[1759651678739,3.75136666,4609.8,4609.7,0.00257384]
[1759651678941,3.85296666,4609.8,4609.7,0.00257384]
[1759651680435,3.85296666,4609.8,4609.0,0.1585]
[1759651680641,3.533,4609.1,4609.0,0.1585]
[1759651680843,4.30268538,4609.1,4608.5,0.5679]
[1759651681043,0.3252,4608.6,4608.5,0.5679]
[1759651681347,0.5442,4608.6,4608.5,0.8394]
[1759651681547,0.5442,4608.6,4608.5,0.84213627]
[1759651681852,0.219,4608.6,4608.5,1.10243627]
[1759651683249,0.219,4608.6,4608.5,6.10243627]
[1759651684147,3.2078,4609.6,4609.5,0.8348]
[1759651684148,3.3704,4609.6,4609.5,0.8348]
[1759651684350,3.89216219,4609.6,4609.5,0.8348]
[1759651684848,3.87556219,4609.6,4609.5,1.0951]
[1759651685543,3.65656219,4609.6,4609.5,1.0951]
[1759651687448,3.66656219,4609.6,4609.5,1.0951]
[1759651687747,3.2078,4610.6,4610.5,1.0951]
[1759651688053,3.5894,4610.6,4610.5,1.0951]
[1759651688944,0.3252,4610.2,4609.5,0.1539]
[1759651689151,0.3206,4610.1,4609.6,0.4094]
[1759651689354,3.2078,4609.7,4609.6,0.4094]
[1759651689548,3.4268,4609.7,4609.6,0.4094]
[1759651690147,0.219,4609.7,4609.6,0.4094]
[1759651691651,3.2078,4610.2,4610.1,0.4094]
[1759651691855,3.4268,4610.2,4610.1,0.4094]
[1759651692654,3.21045246,4610.7,4610.2,0.39032]
[1759651692954,3.39251634,4610.6,4610.5,0.5633]
[1759651693349,3.17351634,4610.6,4610.5,0.5633]
[1759651693548,0.5442,4610.6,4610.5,0.5633]
[1759651694947,3.21045246,4610.7,4610.5,1.07599]
[1759651695148,3.21045246,4610.7,4610.6,0.9412]
[1759651695350,3.21045246,4610.7,4610.6,5.9412]
[1759651696454,3.75465246,4610.7,4610.6,0.4094]
[1759651696655,0.3252,4610.1,4610.0,0.1539]
[1759651696954,0.3252,4610.1,4609.5,0.54427]
[1759651696955,0.219,4610.1,4609.5,0.54427]
[1759651697260,0.219,4610.1,4610.0,0.153]
[1759651697461,0.219,4610.1,4610.0,0.5553]
[1759651697662,0.219,4610.1,4610.0,0.94563]
[1759651697862,0.219,4610.1,4610.0,0.5553]
[1759651699547,0.66073532,4610.1,4610.0,0.5553]
[1759651700148,0.66073532,4610.1,4610.0,1.1023]
[1759651700755,3.21045246,4610.7,4610.6,1.33958]
[1759651701065,0.00265246,4610.7,4610.6,1.33958]
[1759651701456,0.00265246,4610.7,4610.6,5.79258]
[1759651701652,0.219,4611.1,4611.0,0.54325]
[1759651701854,0.219,4611.1,4611.0,0.94555]
[1759651702662,0.22143712,4611.1,4611.0,0.94555]
[1759651703563,0.22143712,4611.1,4611.0,0.5553]
[1759651704663,0.0959,4612.0,4611.0,0.5553]
[1759651704664,3.2078,4612.0,4611.4,0.97554]
[1759651704855,3.2078,4612.5,4612.4,0.79243]
[1759651705364,3.4268,4612.5,4612.4,0.79243]
[1759651705764,3.42939003,4612.5,4612.4,0.79408937]
[1759651706959,3.42939003,4612.5,4612.4,0.40395937]
[1759651707155,3.52529003,4612.5,4612.4,0.00165937]
[1759651707466,11.30095859,4612.5,4611.8,0.4023]
[1759651707765,3.2078,4611.9,4611.8,0.4023]
[1759651707965,3.4268,4611.9,4611.8,0.4023]
[1759651708161,3.4268,4611.9,4611.5,0.5553]
[1759651708162,3.5227,4611.9,4611.5,0.5553]
[1759651708355,3.4268,4611.9,4611.8,0.00281856]
[1759651708563,3.4268,4611.9,4611.8,0.40511856]
[1759651710066,3.2078,4611.9,4611.8,0.40511856]
[1759651710262,3.4268,4611.9,4611.8,0.40511856]
[1759651712373,0.093,4611.8,4610.7,0.3806]
[1759651712673,3.3008,4610.8,4610.2,0.3806]
[1759651712866,3.2078,4610.3,4610.2,0.3806]
[1759651713067,3.4268,4610.3,4610.2,0.3806]
[1759651713272,3.4268,4610.3,4610.2,0.38225336]
[1759651714071,3.5198,4610.3,4610.2,0.00165336]
[1759651715177,3.4268,4610.3,4610.2,0.77257336]
[1759651717874,3.2078,4610.8,4610.7,0.9141]
[1759651718579,3.3567,4610.8,4610.7,0.9141]
[1759651718977,3.5056,4610.8,4610.7,0.9141]
[1759651719173,3.5056,4610.8,4610.7,0.3806]
[1759651719677,3.2078,4610.8,4610.7,0.9141]
[1759651721076,0.219,4610.9,4610.8,0.39027]
[1759651721272,0.219,4610.9,4610.8,1.30437]
[1759651722374,3.2078,4611.4,4611.0,0.1656]
[1759651722578,3.3567,4611.4,4611.3,0.6445]
[1759651722875,3.7246,4611.4,4611.3,0.3806]
[1759651723074,3.7246,4611.4,4611.1,0.39023]
[1759651723276,0.2978,4611.2,4611.1,0.65413]
[1759651723473,0.5168,4611.2,4611.1,0.92373]
[1759651723672,0.5168,4611.2,4611.1,0.9141]
[1759651724268,0.5168,4611.2,4611.0,0.1656]
[1759651724474,0.5168,4611.2,4610.5,0.1656]
[1759651724475,0.1489,4610.6,4610.5,0.8101]
[1759651724675,0.219,4610.7,4610.5,0.5462]
[1759651724981,0.219,4610.6,4610.5,0.5462]
[1759651727676,0.5049,4610.6,4610.5,0.5462]
[1759651728076,0.5905,4610.6,4610.5,0.3806]
[1759651728680,0.5905,4610.6,4610.2,0.00165336]
[1759651728978,3.5674,4610.3,4610.2,0.00165336]
[1759651729183,3.7864,4610.3,4610.2,0.00165336]
[1759651729485,6.56970232,4610.3,4610.2,0.00165336]
[1759651729679,6.56970232,4610.3,4609.5,0.5426]
[1759651729680,11.48410232,4610.3,4609.5,0.5426]
[1759651729880,3.4818,4609.6,4609.5,0.5426]
[1759651730086,3.7008,4609.6,4609.5,0.5426]
[1759651730680,3.7008,4609.6,4609.5,0.54476504]
[1759651730984,3.7864,4609.6,4609.5,0.00216504]
[1759651731683,3.7008,4609.6,4609.5,0.00216504]
[1759651731878,3.7008,4609.6,4609.5,0.37916504]
[1759651732482,3.7008,4609.6,4609.5,0.53566504]
[1759651733278,11.6005249,4609.6,4609.5,0.00216504]
[1759651734276,11.6005249,4609.6,4608.6,0.39045]
[1759651734277,11.6005249,4609.6,4608.2,0.39048]
[1759651734484,3.4748,4608.6,4608.5,0.5335]
[1759651734683,3.6938,4608.6,4608.5,0.5335]
[1759651735282,3.69621465,4608.6,4608.5,0.53556937]
[1759651735482,3.69621465,4608.6,4608.5,0.92602937]
[1759651735677,3.69621465,4608.6,4608.5,0.53556937]
[1759651735878,6.53672673,4608.6,4608.5,0.53556937]
[1759651736577,6.62022673,4608.6,4608.5,0.00206937]
[1759651737785,6.31772673,4608.6,4608.5,0.53556937]
[1759651737986,6.53672673,4608.6,4608.5,0.53556937]
[1759651740484,0.00241465,4608.6,4608.5,1.06036937]
[1759651740788,0.22141465,4608.6,4608.5,1.06036937]
[1759651741488,3.2078,4609.1,4609.0,1.44872]
[1759651741783,3.4268,4609.1,4609.0,1.44872]
[1759651742187,3.4268,4609.1,4609.0,1.0583]
[1759651742586,3.42837006,4609.1,4609.0,1.0583]
[1759651742782,3.42837006,4609.1,4609.0,1.44872]
[1759651743278,3.42837006,4609.1,4609.0,1.0583]
[1759651743887,3.56187006,4609.1,4609.0,1.0583]
[1759651744582,3.42837006,4609.1,4609.0,1.0583]
[1759651746287,3.56187006,4609.1,4609.0,1.0583]
[1759651747282,3.42837006,4609.1,4609.0,1.0583]
[1759651747490,3.56187006,4609.1,4609.0,1.0583]
[1759651747686,0.35407006,4609.1,4609.0,1.0583]
[1759651748178,0.48757006,4609.1,4609.0,0.5335]
[1759651748490,3.77887006,4609.1,4608.5,0.53556937]
[1759651748983,2.77251106,4609.0,4608.5,0.53556937]
[1759651749184,0.267,4608.6,4608.5,0.53556937]
[1759651749379,0.486,4608.6,4608.5,0.53556937]
[1759651749584,3.7773,4608.6,4608.5,0.00206937]
[1759651749982,3.7773,4608.6,4608.5,0.37906937]
[1759651750588,3.7773,4608.6,4608.5,0.00206937]
[1759651751392,3.7773,4608.6,4608.5,0.53556937]
[1759651751393,3.6938,4608.6,4608.5,0.53556937]
[1759651752185,3.7773,4608.6,4608.5,0.37906937]
[1759651752386,3.7773,4608.6,4608.5,0.00206937]
[1759651754093,3.4748,4608.6,4608.5,1.45082937]
[1759651754289,0.486,4608.6,4608.5,1.45082937]
[1759651754493,0.486,4608.6,4608.5,1.06036937]
[1759651754494,0.3525,4608.6,4608.5,1.06036937]
[1759651754895,0.486,4608.6,4608.5,1.06036937]
[1759651755992,0.486,4608.6,4607.1,0.20310743]
[1759651755993,11.28624655,4608.6,4607.1,0.20310743]
[1759651756297,3.2078,4607.2,4606.5,0.1565]
[1759651756496,3.2078,4606.6,4606.5,0.1565]
[1759651756797,3.87750197,4606.6,4606.5,0.1565]
[1759651756987,3.87750197,4606.6,4606.5,0.15894815]
[1759651757187,3.87750197,4606.6,4606.0,0.20731638]
[1759651757188,11.69101015,4606.6,4606.0,0.20731638]
[1759651757387,3.2078,4606.1,4606.0,0.20731638]
[1759651757593,3.87750197,4606.1,4606.0,0.20731638]
[1759651757891,6.69101015,4606.1,4606.0,0.20731638]
[1759651758087,6.69101015,4606.1,4606.0,0.59157638]
[1759651758893,3.65850197,4606.1,4606.0,0.59157638]
[1759651759088,3.65850197,4606.1,4606.0,0.57342673]
[1759651759089,6.67252108,4606.1,4606.0,0.57342673]
[1759651759395,0.45070197,4606.1,4606.0,0.57342673]
[1759651759596,3.65850197,4606.1,4606.0,0.57342673]
[1759651760196,3.87750197,4606.1,4606.0,0.57342673]
[1759651760700,0.66970197,4606.1,4606.0,0.57342673]
[1759651763213,3.87750197,4606.1,4606.0,0.57342673]
[1759651764406,3.87750197,4606.1,4606.0,0.03462673]
[1759651764608,13.23054953,4606.1,4604.8,0.3823]
[1759651764815,3.2078,4605.4,4605.0,0.1514]
[1759651765106,0.66970197,4605.3,4605.1,0.3823]
[1759651765307,0.45070197,4605.2,4605.1,0.3823]
[1759651765511,0.45264889,4605.2,4605.1,0.3842982]
[1759651771312,0.00194692,4605.2,4605.1,0.3842982]
[1759651772814,0.00194692,4605.2,4605.1,0.9098982]
[1759651773211,3.2078,4606.4,4606.3,0.4052]
[1759651774212,3.21014357,4606.4,4606.3,0.4052]
[1759651774416,3.21014357,4606.4,4606.3,5.4052]
[1759651775310,0.00234357,4606.4,4606.3,5.4052]
[1759651775510,3.2078,4606.9,4606.8,0.3906]
[1759651775721,3.2078,4606.9,4606.8,0.7958]
[1759651775911,3.2078,4607.7,4607.5,0.1499]
[1759651776112,0.66645195,4607.6,4607.5,0.5551]
[1759651776411,0.6684822,4607.6,4607.5,0.5551]
[1759651776810,0.4494822,4607.6,4607.5,0.5551]
[1759651777210,0.6684822,4607.6,4607.5,0.5551]
[1759651777720,0.4494822,4607.6,4607.5,0.5551]
[1759651780520,0.4494822,4607.6,4607.5,0.1499]
[1759651780918,0.4494822,4607.6,4607.5,0.5551]
[1759651781223,5.4494822,4607.6,4607.0,0.5551]
[1759651781424,0.44745195,4607.5,4607.1,0.4052]
[1759651781622,3.2078,4607.2,4607.1,0.4052]
[1759651781922,3.65525195,4607.2,4607.1,0.4052]
[1759651784014,6.46399469,4607.2,4607.1,0.4052]
[1759651784220,3.65525195,4607.2,4607.1,0.4052]
[1759651784619,3.87425195,4607.2,4607.1,0.4052]
[1759651788422,3.65525195,4607.2,4607.1,0.4052]
[1759651788632,0.44745195,4607.2,4607.1,4.00358]
[1759651788822,0.00203025,4607.6,4607.5,0.5596]
[1759651789018,0.44867811,4607.6,4607.5,0.5596]
[1759651792923,0.44867811,4607.6,4607.0,0.1499]
[1759651792924,0.44867811,4607.6,4607.1,0.3988]
[1759651793126,3.65444786,4607.5,4607.1,0.3988]
[1759651793429,0.44664786,4607.4,4607.0,0.1499]
[1759651793622,0.00203025,4607.6,4607.2,1.33307]
[1759651793623,0.44664786,4607.3,4607.2,1.33307]
[1759651794020,0.00203025,4607.6,4607.5,1.21864]
[1759651794227,0.44851172,4607.6,4607.5,1.1033]
[1759651794627,0.44851172,4607.6,4607.5,0.8281]
[1759651794930,0.44851172,4607.6,4607.5,1.49384]
[1759651795127,0.44851172,4607.6,4607.5,1.1033]
[1759651799529,0.44851172,4607.6,4607.5,6.1033]
[1759651799831,0.00203025,4607.6,4607.5,6.1033]
[1759651800220,0.46169056,4607.6,4607.5,6.1033]
[1759651801026,0.46169056,4607.6,4607.5,1.1033]
[1759651801527,0.46169056,4607.6,4607.5,0.5596]
[1759651801928,0.46169056,4607.6,4607.0,0.1499]
[1759651801929,8.31589583,4607.6,4607.0,0.5487]
[1759651802231,0.45966031,4607.5,4607.0,0.1499]
[1759651802420,0.45966031,4607.4,4607.1,0.3988]
[1759651802622,3.2078,4607.2,4606.1,0.3988]
[1759651802828,3.2078,4606.8,4606.5,0.1608]
[1759651803034,0.45966031,4606.7,4606.5,0.5596]
[1759651803331,0.67866031,4606.6,4606.5,0.5596]
[1759651803722,8.55425634,4606.6,4606.5,0.1608]
[1759651803929,8.55425634,4606.6,4605.5,0.1608]
[1759651803930,8.55425634,4606.6,4605.8,0.3988]
[1759651804127,3.2078,4606.2,4605.8,0.3988]
[1759651804423,0.67866031,4606.1,4606.0,0.5487]
[1759651805431,0.67866031,4606.1,4606.0,0.1499]
[1759651805631,0.67866031,4606.1,4606.0,0.5487]
[1759651806634,5.67866031,4606.1,4606.0,0.5487]
[1759651806835,8.45290696,4606.1,4606.0,0.1499]
[1759651807332,8.45290696,4606.1,4605.5,0.1608]
[1759651807541,0.45966031,4606.0,4605.6,0.3988]
[1759651807835,3.24709817,4605.9,4605.8,0.6673]
[1759651808035,3.24709817,4605.9,4605.8,0.3988]
[1759651808234,0.45966031,4605.9,4605.8,0.3988]
[1759651808633,0.45966031,4605.9,4605.8,0.6673]
[1759651808836,0.45966031,4605.9,4605.8,0.9425]
[1759651809829,0.67866031,4605.9,4605.8,0.9425]
[1759651814043,0.45966031,4605.9,4605.8,5.9425]
[1759651815034,3.2078,4607.2,4607.1,0.6673]
[1759651815238,3.4268,4607.2,4607.1,0.9425]
[1759651815437,0.219,4607.2,4607.1,0.9425]
[1759651815636,0.219,4607.2,4607.1,0.3988]
[1759651815836,3.4268,4607.2,4607.1,0.3988]
[1759651819341,3.2078,4609.0,4607.2,0.4083]
[1759651819650,0.4942,4609.0,4608.9,0.79873]
[1759651819848,0.4942,4609.0,4608.9,0.6273]
[1759651820142,0.4942,4609.0,4608.7,3.2078]
[1759651820143,0.4052,4608.9,4608.7,3.6161]
[1759651820447,0.4052,4608.8,4608.7,3.60092768]
[1759651820639,0.4052,4608.8,4608.7,3.21048768]
[1759651820838,0.00190713,4608.9,4608.7,3.60092768]
[1759651821045,0.00190713,4608.9,4608.8,0.4083]
[1759651822040,0.00190713,4608.9,4608.8,5.4083]
[1759651822448,0.00190713,4608.9,4608.8,0.6273]
[1759651822746,0.00190713,4608.9,4608.8,0.4083]
[1759651822947,0.00190713,4608.9,4608.8,0.6273]
[1759651823151,0.00190713,4608.9,4608.8,0.4083]
[1759651823448,0.00190713,4608.9,4608.8,0.6273]
[1759651823745,0.00190713,4608.9,4608.8,0.4083]
[1759651823946,0.00190713,4608.9,4608.8,0.6273]
[1759651824445,0.00190713,4608.9,4608.8,0.219]
[1759651824941,0.00190713,4608.9,4608.8,0.4083]
[1759651825153,0.00190713,4608.9,4608.8,0.6273]
[1759651825648,0.00190713,4608.9,4608.8,5.6273]
[1759651826944,0.4052,4610.1,4609.9,0.39033]
[1759651827250,0.4052,4610.1,4610.0,0.4083]
[1759651827443,0.526,4610.5,4610.1,0.39032]
[1759651827648,0.526,4610.5,4610.1,0.79862]
[1759651827945,3.21019035,4610.2,4610.1,0.79862]
[1759651828548,3.61539035,4610.2,4610.1,0.79862]
[1759651828742,3.61539035,4610.2,4610.1,0.4083]
[1759651828946,0.00239035,4610.2,4610.1,3.6161]
[1759651829351,0.4052,4609.9,4609.6,3.2078]
[1759651829546,0.164,4609.5,4609.0,3.2078]
[1759651829851,0.4052,4608.9,4608.7,0.00268768]
[1759651832244,0.383,4609.0,4608.7,0.00268768]
[1759651832445,0.3966,4608.9,4608.7,0.00268768]
[1759651833543,0.383,4609.0,4608.7,0.00268768]
[1759651833745,0.3966,4608.9,4608.7,0.00268768]
[1759651835453,0.383,4609.0,4608.7,0.00268768]
[1759651835643,0.3966,4608.9,4608.7,0.00268768]
[1759651837854,0.9417,4608.8,4608.7,0.00268768]
[1759651838453,0.9417,4608.8,4608.7,0.29068768]
[1759651838848,0.9417,4608.8,4608.7,0.56648768]
[1759651839856,0.9417,4608.8,4608.7,0.00268768]
[1759651841744,0.6789,4608.8,4608.7,0.56648768]
[1759651842553,0.9417,4608.8,4608.7,0.56648768]
[1759651844557,0.9417,4608.8,4608.7,0.00268768]
[1759651845157,0.9417,4608.8,4608.7,0.29068768]
[1759651845545,0.6789,4608.8,4608.7,0.56648768]
[1759651846050,0.6789,4608.8,4608.7,0.99978768]
[1759651846252,0.3966,4608.8,4608.7,0.99978768]
[1759651846548,0.3966,4609.4,4609.3,0.9971]
[1759651846752,0.3966,4609.4,4609.3,1.38749]
[1759651846947,0.3966,4609.9,4609.8,0.9971]
[1759651847146,0.39719035,4610.2,4610.1,0.5483]
[1759651847347,0.39719035,4610.2,4610.1,0.9641]
[1759651848760,0.00239035,4610.2,4610.1,0.9641]
[1759651849456,0.3948,4610.9,4610.5,0.93859]
[1759651849660,0.6138,4611.3,4610.7,0.5483]
[1759651849862,0.8975,4611.3,4611.2,0.2664]
[1759651850363,0.96386664,4611.3,4611.2,0.2664]
[1759651853859,0.96386664,4611.3,4610.9,0.39025]
[1759651854054,0.96386664,4611.3,4611.0,0.39025]
[1759651854458,0.96386664,4611.3,4610.7,0.219]
[1759651854759,1.1271,4611.0,4610.7,0.219]
[1759651855063,0.9616,4610.9,4610.8,0.65666]
[1759651855357,0.9616,4610.9,4610.1,0.9758]
[1759651855358,0.2837,4609.9,4609.8,3.2078]
[1759651855557,0.3948,4609.8,4609.2,3.6236]
[1759651855762,1.1271,4609.5,4609.4,0.2664]
[1759651855963,0.6785,4609.5,4609.4,0.5483]
[1759651856164,0.6785,4609.5,4609.4,0.9641]
[1759651857760,0.6785,4609.5,4609.4,0.5483]
[1759651859465,0.6785,4609.5,4609.4,0.9641]
[1759651860865,1.1271,4609.5,4609.4,0.5483]
[1759651861661,0.3948,4609.4,4608.7,3.21048768]
[1759651861858,0.9616,4608.8,4608.7,0.00268768]
[1759651868167,3.83575085,4608.8,4607.5,3.2078]
[1759651868374,0.9616,4607.6,4607.5,3.2078]
[1759651869172,0.9616,4607.6,4607.5,3.59838]
[1759651869475,0.96319272,4607.6,4607.5,3.86678828]
[1759651871473,0.96319272,4607.6,4607.5,4.14868828]
[1759651872071,0.96319272,4607.6,4607.5,4.56448828]
[1759651872783,0.68009272,4607.6,4607.5,4.56448828]
[1759651873378,0.68009272,4607.6,4607.5,4.14868828]
[1759651875182,0.96319272,4607.6,4607.5,4.36768828]
[1759651875482,0.96319272,4607.6,4607.5,4.14868828]
[1759651875683,0.96319272,4607.6,4607.5,3.75810828]
[1759651876284,0.96319272,4607.6,4607.5,4.14868828]
[1759651877782,0.96319272,4607.6,4607.5,4.36768828]
[1759651878686,0.68309272,4607.6,4607.5,4.74918828]
[1759651879183,0.94319272,4607.6,4607.5,4.36768828]
[1759651879991,0.94319272,4607.6,4607.5,4.14868828]
[1759651880189,0.94319272,4607.6,4607.5,3.75810828]
[1759651880386,0.94319272,4607.6,4607.5,4.36768828]
[1759651880586,0.94319272,4607.6,4607.5,4.14868828]
[1759651880788,0.94319272,4607.6,4607.5,3.97710828]
[1759651882789,0.94319272,4607.6,4607.5,4.35860828]
[1759651883085,0.68779272,4607.6,4607.5,4.13960828]
[1759651883288,0.68779272,4607.6,4607.5,4.35860828]
[1759651883488,0.94789272,4607.6,4607.5,3.75810828]
[1759651883689,0.94789272,4607.6,4607.5,3.97710828]
[1759651884190,0.94789272,4607.6,4607.5,3.75810828]
[1759651884388,0.94789272,4607.6,4607.5,3.97710828]
[1759651885087,0.94789272,4607.6,4607.5,3.47620828]
[1759651885291,0.94789272,4607.6,4607.5,0.00200828]
[1759651886488,0.94789272,4607.6,4606.1,0.97675]
[1759651886489,1.1073,4606.5,4606.4,0.5364]
[1759651886691,1.1073,4606.5,4606.4,0.7554]
[1759651886993,1.1073,4606.5,4606.4,0.5364]
[1759651887396,1.1073,4606.5,4606.4,0.53880158]
[1759651887891,1.1073,4606.5,4606.4,0.00240158]
[1759651888392,4.3151,4606.5,4606.4,0.00240158]
[1759651889386,9.5341,4606.5,4606.4,0.00240158]
[1759651891688,0.2579,4605.4,4605.3,4.3382]
[1759651891892,0.661,4605.4,4605.3,4.3382]
[1759651892691,0.661,4605.4,4605.3,4.34076191]
[1759651892893,0.661,4605.4,4605.3,4.12176191]
[1759651893093,0.9133,4605.4,4605.3,3.73856191]
[1759651893396,0.9133,4605.4,4605.3,3.48496191]
[1759651893590,0.9133,4605.4,4605.3,0.27716191]
[1759651893792,0.9133,4605.4,4605.3,0.00256191]
[1759651894685,0.9133,4605.4,4605.3,0.27716191]
[1759651895496,0.9133,4605.4,4605.3,0.53076191]
[1759651896391,0.9133,4605.4,4605.3,4.12176191]
[1759651897098,0.9133,4605.4,4605.3,3.73856191]
[1759651897798,0.9133,4605.4,4605.3,4.12176191]
[1759651898598,0.2579,4604.4,4604.3,4.12685]
[1759651898793,0.2579,4604.4,4604.3,4.51005]
[1759651899097,0.4031,4604.6,4604.5,0.9114]
[1759651899402,1.0713,4605.0,4604.9,0.5282]
[1759651899599,1.0713,4605.0,4604.9,0.53021081]
[1759651902899,0.661,4605.0,4604.9,0.91341081]
[1759651903096,1.1323,4605.4,4605.3,0.5282]
[1759651903302,0.9133,4605.4,4605.3,0.2746]
[1759651903503,0.9133,4605.4,4605.0,0.39079]
[1759651903800,1.0713,4605.0,4604.9,0.00201081]
[1759651906700,3.91586835,4605.0,4604.9,0.00201081]
[1759651911897,3.91586835,4605.0,4604.9,0.27651081]
[1759651911898,1.0713,4605.0,4604.9,0.27651081]
[1759651912400,1.0713,4605.0,4604.9,0.00201081]
[1759651913402,3.84737767,4605.0,4604.9,0.00201081]
[1759651920908,3.84737767,4605.0,4604.9,0.27651081]
[1759651921412,3.84737767,4605.0,4604.9,0.00201081]
[1759651921909,5.39230887,4605.0,4604.9,0.00201081]
[1759651923716,3.84737767,4605.0,4604.9,0.00201081]
[1759651924509,3.84737767,4605.0,4604.9,0.27651081]
[1759651925013,3.84737767,4605.0,4604.9,0.66731081]
[1759651925209,3.84737767,4605.0,4604.9,0.39281081]
[1759651925413,3.84737767,4605.0,4604.9,0.00201081]
[1759651925613,3.84737767,4605.0,4604.9,0.93891081]
[1759651925809,4.06637767,4605.0,4604.9,0.93891081]
[1759651926010,4.06637767,4605.0,4604.9,0.39281081]
[1759651926514,4.06637767,4605.0,4604.9,0.00201081]
[1759651932323,4.06637767,4605.0,4604.9,0.39281081]
[1759651932926,3.84737767,4605.0,4604.9,0.93891081]
[1759651933120,0.819,4605.0,4604.9,1.35501081]
[1759651933322,1.038,4605.0,4604.9,1.35501081]
[1759651934425,0.88,4605.0,4604.9,1.35501081]
[1759651934615,0.88,4605.0,4604.9,0.93891081]
[1759651934616,1.3085,4605.0,4604.9,0.93891081]
[1759651935325,1.3085,4605.0,4604.9,0.00201081]
[1759651935718,1.3085,4605.0,4604.9,0.39281081]
[1759651937330,1.3085,4605.0,4604.9,1.29581081]
[1759651937827,1.0895,4605.0,4604.9,1.29581081]
[1759651938130,1.3085,4605.0,4604.9,0.92111081]
[1759651939829,1.3085,4605.0,4604.9,0.65361081]
[1759651940628,1.3085,4605.0,4604.9,0.00201081]
[1759651940832,4.14996868,4605.0,4604.9,0.00201081]
[1759651941735,4.14996868,4605.0,4604.9,0.39281081]
[1759651944137,4.14996868,4605.0,4604.9,0.00201081]
[1759651944335,1.0453,4604.0,4603.9,0.39089]
[1759651944635,0.219,4604.0,4603.9,1.29389]
[1759651944837,0.601,4604.0,4603.9,1.29389]
[1759651945139,1.2643,4604.0,4603.9,0.91919]
[1759651945430,1.26684833,4604.0,4603.9,0.92175149]
[1759651945740,1.26684833,4604.0,4603.9,0.65425149]
[1759651946434,1.26684833,4604.0,4603.9,0.39345149]
[1759651947933,0.897,4603.9,4603.5,0.39091]
[1759651948133,0.897,4603.9,4603.6,0.39091]
[1759651948333,0.36984833,4604.0,4603.2,3.2078]
[1759651948334,0.897,4603.3,4603.2,3.2078]
[1759651948534,0.897,4603.3,4602.9,0.41269567]
[1759651948535,1.0453,4603.0,4602.9,0.41269567]
[1759651948937,1.0453,4603.0,4602.9,0.41429082]
[1759651949142,1.0453,4603.0,4602.9,0.67509082]
[1759651949440,1.0453,4603.0,4602.9,0.94259082]
[1759651949847,1.0453,4603.0,4602.9,0.28412082]
[1759651950050,1.0453,4603.0,4602.9,0.02332082]
[1759651950439,1.0453,4603.0,4601.7,1.73640231]